[Event "*** Titled Tuesday Blitz"]
[Site "Chess.com"]
[Date "2020.11.03"]
[Round "1"]
[White "ecwinslow"]
[Black "SamuelGhimpu2003"]
[Result "0-1"]
[WhiteElo "2200"]
[BlackElo "2544"]
[TimeControl "180+1"]
[EndTime "10:07:09 PST"]
[Termination "SamuelGhimpu2003 won by resignation"]

1. e4 {[%clk 0:03:00.9]} 1... e6 {[%clk 0:02:59.5]} 2. d4 {[%clk 0:02:59.9]}
2... d5 {[%clk 0:03:00.4]} 3. Nd2 {[%clk 0:02:59.2]} 3... c5 {[%clk 0:03:00.1]}
4. exd5 {[%clk 0:02:56]} 4... Qxd5 {[%clk 0:03:01]} 5. Ngf3 {[%clk 0:02:55.9]}
5... cxd4 {[%clk 0:03:00.5]} 6. Bc4 {[%clk 0:02:56.5]} 6... Qd7 {[%clk 0:03:01]}
7. O-O {[%clk 0:02:54.6]} 7... Nc6 {[%clk 0:03:01.9]} 8. Nb3 {[%clk 0:02:53.5]}
8... a6 {[%clk 0:03:02.2]} 9. a4 {[%clk 0:02:48.6]} 9... Nf6 {[%clk 0:03:02]}
10. Nbxd4 {[%clk 0:02:47.7]} 10... Nxd4 {[%clk 0:03:00]} 11. Nxd4 {[%clk
0:02:47.3]} 11... Qc7 {[%clk 0:03:00.2]} 12. b3 {[%clk 0:02:44.3]} 12... Bd6
{[%clk 0:02:58]} 13. h3 {[%clk 0:02:39.7]} 13... O-O {[%clk 0:02:52.3]} 14. Qf3
{[%clk 0:02:31.5]} 14... b6 {[%clk 0:02:46.4]} 15. Bb2 {[%clk 0:02:08.5]} 15...
Bb7 {[%clk 0:02:46.1]} 16. Qe2 {[%clk 0:02:06.8]} 16... Nd5 {[%clk 0:02:40.9]}
17. Bxd5 {[%clk 0:01:53.6]} 17... Bxd5 {[%clk 0:02:41.8]} 18. c4 {[%clk
0:01:53.2]} 18... Bb7 {[%clk 0:02:42]} 19. Rad1 {[%clk 0:01:45.9]} 19... Rad8
{[%clk 0:02:40.4]} 20. Rfe1 {[%clk 0:01:32.3]} 20... Bb4 {[%clk 0:02:34.9]} 21.
Rf1 {[%clk 0:01:30.2]} 21... Qf4 {[%clk 0:02:25.9]} 22. Qg4 {[%clk 0:01:02.7]}
22... Qxg4 {[%clk 0:02:16.8]} 23. hxg4 {[%clk 0:01:01.9]} 23... Bc5 {[%clk
0:02:10.3]} 24. Rfe1 {[%clk 0:01:00.9]} 24... Rfe8 {[%clk 0:02:08.8]} 25. Nf3
{[%clk 0:00:58.2]} 25... Rxd1 {[%clk 0:02:01]} 26. Rxd1 {[%clk 0:00:57.2]} 26...
Be4 {[%clk 0:02:01.9]} 27. Rd2 {[%clk 0:00:40.6]} 27... f6 {[%clk 0:01:52.9]}
28. Bd4 {[%clk 0:00:36.2]} 28... Bb4 {[%clk 0:01:22.7]} 29. Re2 {[%clk
0:00:34.8]} 29... Bd3 {[%clk 0:01:23.1]} 30. Re3 {[%clk 0:00:34.3]} 30... Bc2
{[%clk 0:01:23.7]} 31. Bxb6 {[%clk 0:00:33.4]} 31... e5 {[%clk 0:01:24.3]} 32.
Ne1 {[%clk 0:00:26.7]} 32... Bd1 {[%clk 0:01:23.2]} 33. c5 {[%clk 0:00:24.7]}
33... Bxg4 {[%clk 0:01:18.7]} 34. c6 {[%clk 0:00:21.9]} 34... Rb8 {[%clk
0:01:13.5]} 35. a5 {[%clk 0:00:19.4]} 35... Kf7 {[%clk 0:01:03.9]} 36. c7 {[%clk
0:00:18.3]} 36... Rc8 {[%clk 0:01:03.6]} 37. Nc2 {[%clk 0:00:18]} 37... Bd6
{[%clk 0:01:03.4]} 38. Rc3 {[%clk 0:00:17.5]} 38... Ke7 {[%clk 0:01:03.8]} 39.
b4 {[%clk 0:00:14.9]} 39... Kd7 {[%clk 0:01:03.1]} 40. b5 {[%clk 0:00:13.7]}
40... axb5 {[%clk 0:01:02.7]} 41. a6 {[%clk 0:00:13.8]} 41... Bf5 {[%clk
0:00:45.7]} 42. Ne3 {[%clk 0:00:11]} 42... Be4 {[%clk 0:00:46]} 43. f3 {[%clk
0:00:10.2]} 43... Ba8 {[%clk 0:00:44.3]} 44. Nf5 {[%clk 0:00:08.9]} 44... Bxc7
{[%clk 0:00:42.8]} 45. Rb3 {[%clk 0:00:06.3]} 45... Bxb6+ {[%clk 0:00:42.5]} 0-1

[Event "*** Titled Tuesday Blitz"]
[Site "Chess.com"]
[Date "2020.11.03"]
[Round "1"]
[White "Flutaga"]
[Black "WPWPWP-2015"]
[Result "1/2-1/2"]
[WhiteElo "1866"]
[BlackElo "2467"]
[TimeControl "180+1"]
[EndTime "10:07:09 PST"]
[Termination "Game drawn by repetition"]

1. e4 {[%clk 0:02:59.9]} 1... c5 {[%clk 0:02:58.2]} 2. Nc3 {[%clk 0:02:59.2]}
2... d6 {[%clk 0:02:55.4]} 3. f4 {[%clk 0:02:59.1]} 3... Nc6 {[%clk 0:02:54.3]}
4. Nf3 {[%clk 0:02:59.2]} 4... g6 {[%clk 0:02:51.7]} 5. Bb5 {[%clk 0:02:58.3]}
5... Bg7 {[%clk 0:02:50.7]} 6. O-O {[%clk 0:02:56.6]} 6... e6 {[%clk 0:02:48.9]}
7. d3 {[%clk 0:02:55.1]} 7... Ne7 {[%clk 0:02:48.4]} 8. Qe1 {[%clk 0:02:52.7]}
8... Bd7 {[%clk 0:02:45.2]} 9. Qh4 {[%clk 0:02:49]} 9... Nd4 {[%clk 0:02:32.4]}
10. Bxd7+ {[%clk 0:02:43.7]} 10... Qxd7 {[%clk 0:02:31.7]} 11. Nxd4 {[%clk
0:02:39.5]} 11... Bxd4+ {[%clk 0:02:29]} 12. Kh1 {[%clk 0:02:37.6]} 12... f5
{[%clk 0:02:16.4]} 13. Re1 {[%clk 0:02:23.8]} 13... O-O-O {[%clk 0:02:06.9]} 14.
Bd2 {[%clk 0:02:12.7]} 14... h6 {[%clk 0:01:57]} 15. a4 {[%clk 0:01:56.1]} 15...
g5 {[%clk 0:01:54.8]} 16. Qh5 {[%clk 0:01:54]} 16... Rdg8 {[%clk 0:01:44.2]} 17.
Nb5 {[%clk 0:01:45.7]} 17... Kb8 {[%clk 0:01:38.1]} 18. c3 {[%clk 0:01:40.9]}
18... Bg7 {[%clk 0:01:28.9]} 19. Qf7 {[%clk 0:01:21.8]} 19... gxf4 {[%clk
0:01:17.4]} 20. exf5 {[%clk 0:01:05.3]} 20... Be5 {[%clk 0:01:07.6]} 21. fxe6
{[%clk 0:00:51.2]} 21... Qc6 {[%clk 0:01:06.1]} 22. Re4 {[%clk 0:00:44.2]} 22...
Rg7 {[%clk 0:01:03.5]} 23. Qh5 {[%clk 0:00:36.1]} 23... Rhg8 {[%clk 0:00:56.7]}
24. Rg1 {[%clk 0:00:34.3]} 24... Rg5 {[%clk 0:00:53.2]} 25. Qf3 {[%clk
0:00:33.7]} 25... Nf5 {[%clk 0:00:34.4]} 26. Bxf4 {[%clk 0:00:27.2]} 26... Nh4
{[%clk 0:00:34]} 27. Qh3 {[%clk 0:00:10.8]} 27... Rxg2 {[%clk 0:00:26.7]} 28.
Rxg2 {[%clk 0:00:10]} 28... Nxg2 {[%clk 0:00:26.5]} 29. Bxe5 {[%clk 0:00:09.7]}
29... dxe5 {[%clk 0:00:22]} 30. Qf5 {[%clk 0:00:09.8]} 30... Nf4 {[%clk
0:00:17.4]} 31. Qxe5+ {[%clk 0:00:10]} 31... Ka8 {[%clk 0:00:15.6]} 32. Nc7+
{[%clk 0:00:10.3]} 32... Kb8 {[%clk 0:00:14.9]} 33. Nb5+ {[%clk 0:00:10.9]}
33... Ka8 {[%clk 0:00:11.3]} 34. Nc7+ {[%clk 0:00:11.2]} 34... Kb8 {[%clk
0:00:10.5]} 35. Nb5+ {[%clk 0:00:11.5]} 1/2-1/2

[Event "*** Titled Tuesday Blitz"]
[Site "Chess.com"]
[Date "2020.11.03"]
[Round "1"]
[White "GP9isback23"]
[Black "Beca95"]
[Result "0-1"]
[WhiteElo "2461"]
[BlackElo "2955"]
[TimeControl "180+1"]
[EndTime "10:07:13 PST"]
[Termination "Beca95 won by resignation"]

1. d4 {[%clk 0:03:00.9]} 1... e6 {[%clk 0:01:55.3]} 2. Nf3 {[%clk 0:03:00.1]}
2... Nf6 {[%clk 0:01:54.7]} 3. c4 {[%clk 0:03:00]} 3... d5 {[%clk 0:01:54.7]} 4.
Nc3 {[%clk 0:02:59.5]} 4... Be7 {[%clk 0:01:55.2]} 5. Bg5 {[%clk 0:02:58.7]}
5... O-O {[%clk 0:01:55.3]} 6. e3 {[%clk 0:02:58.6]} 6... Nbd7 {[%clk
0:01:55.5]} 7. cxd5 {[%clk 0:02:58.1]} 7... exd5 {[%clk 0:01:54.8]} 8. Bd3
{[%clk 0:02:58.1]} 8... c6 {[%clk 0:01:55.3]} 9. O-O {[%clk 0:02:58.2]} 9... Re8
{[%clk 0:01:55.8]} 10. Rb1 {[%clk 0:02:53.5]} 10... a5 {[%clk 0:01:55.3]} 11.
Qc2 {[%clk 0:02:47.2]} 11... Nf8 {[%clk 0:01:55]} 12. a3 {[%clk 0:02:45.1]}
12... Ng6 {[%clk 0:01:55.2]} 13. b4 {[%clk 0:02:44.6]} 13... axb4 {[%clk
0:01:55.2]} 14. axb4 {[%clk 0:02:45.5]} 14... Bd6 {[%clk 0:01:55.7]} 15. b5
{[%clk 0:02:42.9]} 15... h6 {[%clk 0:01:55.4]} 16. Bxf6 {[%clk 0:02:33.1]} 16...
Qxf6 {[%clk 0:01:56.3]} 17. e4 {[%clk 0:02:27.2]} 17... Nh4 {[%clk 0:01:43.7]}
18. Nxh4 {[%clk 0:02:21.8]} 18... Qxh4 {[%clk 0:01:44.6]} 19. g3 {[%clk
0:02:22.3]} 19... Qg4 {[%clk 0:01:41]} 20. e5 {[%clk 0:02:07.2]} 20... Bf8
{[%clk 0:01:40.9]} 21. f4 {[%clk 0:01:51.2]} 21... h5 {[%clk 0:01:30.2]} 22. Be2
{[%clk 0:01:50.1]} 22... Qh3 {[%clk 0:01:30.3]} 23. Bf3 {[%clk 0:01:43.4]} 23...
Bf5 {[%clk 0:01:25.5]} 24. Qe2 {[%clk 0:01:30.3]} 24... Bxb1 {[%clk 0:01:25.2]}
25. Rxb1 {[%clk 0:01:31.2]} 25... g6 {[%clk 0:01:24.3]} 26. Nd1 {[%clk
0:01:04.6]} 26... Qd7 {[%clk 0:01:18.2]} 27. Nf2 {[%clk 0:01:02.6]} 27... Ra4
{[%clk 0:01:16.2]} 28. Nd3 {[%clk 0:01:00.3]} 28... Rxd4 {[%clk 0:01:15.4]} 29.
bxc6 {[%clk 0:00:58.3]} 29... bxc6 {[%clk 0:01:14.9]} 30. Rc1 {[%clk 0:00:58.3]}
30... Qf5 {[%clk 0:01:10.9]} 31. Nf2 {[%clk 0:00:57.8]} 31... c5 {[%clk
0:01:11.2]} 32. Bg2 {[%clk 0:00:51.8]} 32... Qd7 {[%clk 0:01:02.9]} 33. Bh3
{[%clk 0:00:48.1]} 33... f5 {[%clk 0:01:03]} 34. Bg2 {[%clk 0:00:40.5]} 34... c4
{[%clk 0:01:02.8]} 35. Bf3 {[%clk 0:00:32.3]} 35... Ra8 {[%clk 0:00:57.2]} 36.
e6 {[%clk 0:00:30.5]} 36... Qd6 {[%clk 0:00:54]} 37. Nh3 {[%clk 0:00:25.5]}
37... Rd3 {[%clk 0:00:49.5]} 38. Re1 {[%clk 0:00:24.1]} 38... Be7 {[%clk
0:00:47.5]} 39. Bxh5 {[%clk 0:00:23.9]} 39... Qc5+ {[%clk 0:00:47.1]} 40. Kh1
{[%clk 0:00:23.7]} 40... Re3 {[%clk 0:00:39.7]} 41. Qxe3 {[%clk 0:00:21.3]}
41... Qxe3 {[%clk 0:00:39.4]} 42. Rxe3 {[%clk 0:00:22.2]} 42... gxh5 {[%clk
0:00:39.5]} 43. Kg2 {[%clk 0:00:19.3]} 43... d4 {[%clk 0:00:39.9]} 44. Re5
{[%clk 0:00:17.7]} 44... d3 {[%clk 0:00:40.3]} 45. Rxf5 {[%clk 0:00:18.2]} 45...
c3 {[%clk 0:00:39.3]} 46. Rd5 {[%clk 0:00:17.8]} 46... c2 {[%clk 0:00:38.9]} 0-1

[Event "*** Titled Tuesday Blitz"]
[Site "Chess.com"]
[Date "2020.11.03"]
[Round "1"]
[White "RobPeresian"]
[Black "RaunakSadhwani2005"]
[Result "0-1"]
[WhiteElo "2464"]
[BlackElo "2968"]
[TimeControl "180+1"]
[EndTime "10:07:15 PST"]
[Termination "RaunakSadhwani2005 won on time"]

1. Nf3 {[%clk 0:02:52.1]} 1... d5 {[%clk 0:02:58.6]} 2. d4 {[%clk 0:02:49.8]}
2... Nf6 {[%clk 0:02:56.6]} 3. c4 {[%clk 0:02:49]} 3... e6 {[%clk 0:02:55.2]} 4.
Nc3 {[%clk 0:02:48.1]} 4... dxc4 {[%clk 0:02:51.6]} 5. e4 {[%clk 0:02:42.3]}
5... Bb4 {[%clk 0:02:46.1]} 6. Bxc4 {[%clk 0:02:42.1]} 6... Nxe4 {[%clk
0:02:45.3]} 7. O-O {[%clk 0:02:41.1]} 7... Nxc3 {[%clk 0:02:43]} 8. bxc3 {[%clk
0:02:40.8]} 8... Be7 {[%clk 0:02:43.9]} 9. Ne5 {[%clk 0:02:33.3]} 9... O-O
{[%clk 0:02:38.4]} 10. f4 {[%clk 0:02:28.9]} 10... Nd7 {[%clk 0:02:30.9]} 11.
Rf3 {[%clk 0:02:15.9]} 11... Nf6 {[%clk 0:02:27.1]} 12. g4 {[%clk 0:02:01]}
12... c5 {[%clk 0:02:19.7]} 13. g5 {[%clk 0:01:54.9]} 13... Nd5 {[%clk
0:02:18.8]} 14. Rh3 {[%clk 0:01:44.7]} 14... g6 {[%clk 0:02:09]} 15. Qg4 {[%clk
0:01:10]} 15... cxd4 {[%clk 0:02:06.1]} 16. Rh6 {[%clk 0:00:54.2]} 16... Kg7
{[%clk 0:01:57.8]} 17. Qh4 {[%clk 0:00:21.2]} 17... Rh8 {[%clk 0:01:58]} 18. Bd3
{[%clk 0:00:19.7]} 18... dxc3 {[%clk 0:01:50]} 19. Nxf7 {[%clk 0:00:16.1]} 19...
Qb6+ {[%clk 0:01:44.9]} 20. Kh1 {[%clk 0:00:15.3]} 20... Kxf7 {[%clk 0:01:39.6]}
21. Bxg6+ {[%clk 0:00:14.9]} 21... hxg6 {[%clk 0:01:38]} 22. Rxh8 {[%clk
0:00:14.9]} 22... Qd4 {[%clk 0:01:31.6]} 23. Qh7+ {[%clk 0:00:02.7]} 23... Qg7
{[%clk 0:01:31.7]} 24. Qh4 {[%clk 0:00:02.7]} 24... Qd4 {[%clk 0:01:10.9]} 25.
Qh7+ {[%clk 0:00:02]} 25... Qg7 {[%clk 0:01:11.4]} 26. Qh3 {[%clk 0:00:01.9]}
26... e5 {[%clk 0:00:59.2]} 27. Qh4 {[%clk 0:00:02]} 27... Bf5 {[%clk
0:00:44.9]} 28. Rh7 {[%clk 0:00:01.9]} 28... Be4+ {[%clk 0:00:41.9]} 29. Kg1
{[%clk 0:00:02]} 29... Bc5+ {[%clk 0:00:42.8]} 30. Kf1 {[%clk 0:00:02.4]} 30...
exf4 {[%clk 0:00:36.4]} 31. Rxg7+ {[%clk 0:00:02.5]} 31... Kxg7 {[%clk
0:00:37.3]} 32. Qh6+ {[%clk 0:00:03]} 32... Kg8 {[%clk 0:00:33]} 33. a4 {[%clk
0:00:02]} 33... Re8 {[%clk 0:00:30.4]} 34. Ba3 {[%clk 0:00:01.9]} 34... Bd3+
{[%clk 0:00:23]} 35. Kg2 {[%clk 0:00:01.4]} 35... Re2+ {[%clk 0:00:23.9]} 36.
Kh3 {[%clk 0:00:01.6]} 36... Bf5+ {[%clk 0:00:20.2]} 0-1

[Event "*** Titled Tuesday Blitz"]
[Site "Chess.com"]
[Date "2020.11.03"]
[Round "1"]
[White "Neftegor"]
[Black "ChristopherYoo"]
[Result "1-0"]
[WhiteElo "2457"]
[BlackElo "2857"]
[TimeControl "180+1"]
[EndTime "10:07:17 PST"]
[Termination "Neftegor won by resignation"]

1. d4 {[%clk 0:03:00.9]} 1... Nf6 {[%clk 0:02:58.5]} 2. c4 {[%clk 0:03:00.3]}
2... c5 {[%clk 0:02:55.8]} 3. d5 {[%clk 0:02:59.7]} 3... b5 {[%clk 0:02:54.5]}
4. cxb5 {[%clk 0:02:59.2]} 4... a6 {[%clk 0:02:54.2]} 5. bxa6 {[%clk 0:02:59.4]}
5... e6 {[%clk 0:02:53.8]} 6. dxe6 {[%clk 0:02:57]} 6... fxe6 {[%clk 0:02:52]}
7. e3 {[%clk 0:02:57]} 7... Nxa6 {[%clk 0:02:39.7]} 8. Nf3 {[%clk 0:02:56.6]}
8... Bb7 {[%clk 0:02:33.5]} 9. Be2 {[%clk 0:02:56.4]} 9... Be7 {[%clk
0:02:25.3]} 10. O-O {[%clk 0:02:55.9]} 10... O-O {[%clk 0:02:24.9]} 11. Nbd2
{[%clk 0:02:55.9]} 11... Ne4 {[%clk 0:01:51.9]} 12. Nxe4 {[%clk 0:02:47.5]}
12... Bxe4 {[%clk 0:01:52.8]} 13. Nd2 {[%clk 0:02:47.5]} 13... Bc6 {[%clk
0:01:51]} 14. Bf3 {[%clk 0:02:46.7]} 14... d5 {[%clk 0:01:50.6]} 15. e4 {[%clk
0:02:32.2]} 15... Nb4 {[%clk 0:01:31.8]} 16. exd5 {[%clk 0:02:07.9]} 16... exd5
{[%clk 0:01:30.5]} 17. Nb3 {[%clk 0:02:07.9]} 17... Bb5 {[%clk 0:01:13.4]} 18.
Re1 {[%clk 0:02:01.4]} 18... Nd3 {[%clk 0:01:12.6]} 19. Re3 {[%clk 0:01:53.6]}
19... Kh8 {[%clk 0:00:32.3]} 20. Rxd3 {[%clk 0:01:50.9]} 20... Bxd3 {[%clk
0:00:31.8]} 21. Qxd3 {[%clk 0:01:50.7]} 21... c4 {[%clk 0:00:32]} 22. Qxd5
{[%clk 0:01:47]} 22... Qxd5 {[%clk 0:00:19.4]} 23. Bxd5 {[%clk 0:01:46.8]} 23...
cxb3 {[%clk 0:00:15]} 24. Bxa8 {[%clk 0:01:42.1]} 24... Rxa8 {[%clk 0:00:15.9]}
25. a4 {[%clk 0:01:19.6]} 25... Bb4 {[%clk 0:00:14.7]} 26. Kf1 {[%clk 0:01:18]}
26... Kg8 {[%clk 0:00:13.7]} 27. Ke2 {[%clk 0:01:18.1]} 27... Kf7 {[%clk
0:00:13.2]} 28. Kd3 {[%clk 0:01:18.2]} 28... Rc8 {[%clk 0:00:07.8]} 29. a5
{[%clk 0:01:17.4]} 29... Bxa5 {[%clk 0:00:06.1]} 30. Rxa5 {[%clk 0:01:16.1]}
30... Rxc1 {[%clk 0:00:05.5]} 31. Rb5 {[%clk 0:01:16]} 31... Rg1 {[%clk
0:00:05.5]} 32. g3 {[%clk 0:01:14.5]} 32... Rg2 {[%clk 0:00:05.9]} 33. Ke3
{[%clk 0:01:13]} 33... Rxh2 {[%clk 0:00:06.1]} 34. Rxb3 {[%clk 0:01:13.1]} 34...
Rh1 {[%clk 0:00:06.5]} 35. Rb7+ {[%clk 0:01:11.9]} 35... Kf6 {[%clk 0:00:06.6]}
36. Rb6+ {[%clk 0:01:10.8]} 36... Kf5 {[%clk 0:00:06.4]} 37. Rb5+ {[%clk
0:01:10.7]} 37... Kg4 {[%clk 0:00:06.3]} 38. Rb7 {[%clk 0:01:10.1]} 38... g5
{[%clk 0:00:06]} 39. Rb4+ {[%clk 0:01:07.7]} 39... Kh3 {[%clk 0:00:05.5]} 40.
Kf3 {[%clk 0:01:06.8]} 40... h5 {[%clk 0:00:05.5]} 41. Rb5 {[%clk 0:01:05.9]}
41... g4+ {[%clk 0:00:05.4]} 42. Ke2 {[%clk 0:01:03.8]} 42... Kg2 {[%clk
0:00:05.2]} 43. Rf5 {[%clk 0:01:01.7]} 43... Rb1 {[%clk 0:00:04.7]} 44. Rb5
{[%clk 0:01:00.8]} 44... Rf1 {[%clk 0:00:03.9]} 45. Rf5 {[%clk 0:00:59.9]} 45...
Rb1 {[%clk 0:00:04]} 46. Rb5 {[%clk 0:00:51.1]} 46... Rc1 {[%clk 0:00:04.1]} 47.
Ke3 {[%clk 0:00:48.9]} 47... Rc2 {[%clk 0:00:03.1]} 48. Rxh5 {[%clk 0:00:47.5]}
48... Rxf2 {[%clk 0:00:03.3]} 49. Rh2+ {[%clk 0:00:47.2]} 49... Kxh2 {[%clk
0:00:01.6]} 50. Kxf2 {[%clk 0:00:47.3]} 50... Kh3 {[%clk 0:00:01.7]} 51. b4
{[%clk 0:00:46.9]} 1-0

[Event "*** Titled Tuesday Blitz"]
[Site "Chess.com"]
[Date "2020.11.03"]
[Round "1"]
[White "oskariot"]
[Black "Bastiandash"]
[Result "1-0"]
[WhiteElo "2713"]
[BlackElo "2364"]
[TimeControl "180+1"]
[EndTime "10:07:17 PST"]
[Termination "oskariot won on time"]

1. e4 {[%clk 0:03:00.9]} 1... c6 {[%clk 0:02:56.6]} 2. d4 {[%clk 0:03:00.2]}
2... d5 {[%clk 0:02:57.1]} 3. Nd2 {[%clk 0:03:00.6]} 3... dxe4 {[%clk
0:02:57.5]} 4. Nxe4 {[%clk 0:03:01.5]} 4... Nf6 {[%clk 0:02:58.2]} 5. Nxf6+
{[%clk 0:03:01.5]} 5... exf6 {[%clk 0:02:59.1]} 6. Bc4 {[%clk 0:03:01.9]} 6...
Be7 {[%clk 0:02:54.5]} 7. c3 {[%clk 0:02:56.1]} 7... O-O {[%clk 0:02:54.1]} 8.
Nf3 {[%clk 0:02:52.2]} 8... a5 {[%clk 0:02:53.2]} 9. O-O {[%clk 0:02:52.3]} 9...
Na6 {[%clk 0:02:53.3]} 10. Re1 {[%clk 0:02:52.4]} 10... Nc7 {[%clk 0:02:53.3]}
11. Bf4 {[%clk 0:02:50.3]} 11... Nd5 {[%clk 0:02:44.3]} 12. Bg3 {[%clk
0:02:49.8]} 12... Be6 {[%clk 0:02:42.7]} 13. Qd2 {[%clk 0:02:32.8]} 13... Bd6
{[%clk 0:02:36.9]} 14. Re2 {[%clk 0:02:24.5]} 14... Qc7 {[%clk 0:02:09.6]} 15.
Rae1 {[%clk 0:02:11.9]} 15... b5 {[%clk 0:01:55.8]} 16. Bd3 {[%clk 0:02:03.8]}
16... Nf4 {[%clk 0:01:48.5]} 17. Bxf4 {[%clk 0:02:02.7]} 17... Bxf4 {[%clk
0:01:49.4]} 18. Qc2 {[%clk 0:02:03.6]} 18... g6 {[%clk 0:01:41.3]} 19. c4 {[%clk
0:02:03.9]} 19... Qd7 {[%clk 0:01:24.9]} 20. d5 {[%clk 0:01:37.2]} 20... cxd5
{[%clk 0:01:21.6]} 21. cxb5 {[%clk 0:01:37.5]} 21... Rfc8 {[%clk 0:01:13.5]} 22.
Qa4 {[%clk 0:01:36.3]} 22... Bd6 {[%clk 0:01:05.6]} 23. Nd4 {[%clk 0:01:36.4]}
23... Bg4 {[%clk 0:00:59.6]} 24. Re3 {[%clk 0:01:28.2]} 24... Bb4 {[%clk
0:00:49.2]} 25. Rf1 {[%clk 0:01:22.2]} 25... Bd2 {[%clk 0:00:37]} 26. Nc6 {[%clk
0:01:12.2]} 26... Bxe3 {[%clk 0:00:15.3]} 27. fxe3 {[%clk 0:01:13.1]} 27... Kg7
{[%clk 0:00:15]} 28. Qd4 {[%clk 0:01:12.2]} 28... Rxc6 {[%clk 0:00:14.9]} 29.
bxc6 {[%clk 0:01:10.9]} 29... Qxc6 {[%clk 0:00:15.8]} 30. Qxg4 {[%clk
0:01:11.3]} 30... Re8 {[%clk 0:00:14.3]} 31. Qd4 {[%clk 0:01:10.7]} 31... Re5
{[%clk 0:00:14.1]} 32. h3 {[%clk 0:01:06.6]} 32... h5 {[%clk 0:00:14.1]} 33. b3
{[%clk 0:01:02.4]} 33... Qc8 {[%clk 0:00:07.9]} 34. a3 {[%clk 0:01:00.8]} 34...
Qb7 {[%clk 0:00:07.1]} 35. b4 {[%clk 0:01:00.8]} 35... axb4 {[%clk 0:00:07.6]}
36. axb4 {[%clk 0:01:01.7]} 36... Re6 {[%clk 0:00:06.1]} 37. b5 {[%clk
0:01:01.5]} 37... Re5 {[%clk 0:00:05.3]} 38. Rc1 {[%clk 0:01:00.3]} 38... Re6
{[%clk 0:00:04.5]} 39. Rb1 {[%clk 0:00:58.4]} 39... Rb6 {[%clk 0:00:04.6]} 40.
Qc5 {[%clk 0:00:54.4]} 40... Re6 {[%clk 0:00:04.4]} 41. b6 {[%clk 0:00:53]}
41... d4 {[%clk 0:00:01.7]} 42. exd4 {[%clk 0:00:46.5]} 42... Qb8 {[%clk
0:00:02.2]} 43. d5 {[%clk 0:00:44.4]} 43... Re8 {[%clk 0:00:01.8]} 44. b7 {[%clk
0:00:43.7]} 44... Qg3 {[%clk 0:00:02.2]} 45. Bf1 {[%clk 0:00:41.5]} 45... Re3
{[%clk 0:00:01]} 46. b8=Q {[%clk 0:00:38]} 1-0

[Event "*** Titled Tuesday Blitz"]
[Site "Chess.com"]
[Date "2020.11.03"]
[Round "1"]
[White "pavelalexandru07"]
[Black "Aygehovit1992"]
[Result "1/2-1/2"]
[WhiteElo "2326"]
[BlackElo "2631"]
[TimeControl "180+1"]
[EndTime "10:07:17 PST"]
[Termination "Game drawn by repetition"]

1. e4 {[%clk 0:03:00.9]} 1... c5 {[%clk 0:02:58.8]} 2. Nf3 {[%clk 0:03:00.7]}
2... d6 {[%clk 0:02:59.1]} 3. d4 {[%clk 0:03:01]} 3... cxd4 {[%clk 0:03:00]} 4.
Nxd4 {[%clk 0:03:01.7]} 4... Nf6 {[%clk 0:03:00.6]} 5. Nc3 {[%clk 0:03:02]} 5...
g6 {[%clk 0:03:01.1]} 6. Be3 {[%clk 0:03:01]} 6... Bg7 {[%clk 0:03:01.2]} 7. Bc4
{[%clk 0:03:01.2]} 7... O-O {[%clk 0:02:59.7]} 8. f3 {[%clk 0:03:00.7]} 8... Nc6
{[%clk 0:02:58.7]} 9. Qd2 {[%clk 0:03:00.4]} 9... Bd7 {[%clk 0:02:58.2]} 10. g4
{[%clk 0:02:52.1]} 10... Ne5 {[%clk 0:02:52.3]} 11. Bb3 {[%clk 0:02:40.4]} 11...
b5 {[%clk 0:02:47.1]} 12. h4 {[%clk 0:02:05.3]} 12... a5 {[%clk 0:02:41.7]} 13.
a4 {[%clk 0:01:38.2]} 13... bxa4 {[%clk 0:02:34.1]} 14. Nxa4 {[%clk 0:01:36.8]}
14... Rc8 {[%clk 0:02:20]} 15. h5 {[%clk 0:01:09.2]} 15... Nc4 {[%clk
0:02:15.7]} 16. Bxc4 {[%clk 0:01:09.5]} 16... Rxc4 {[%clk 0:02:16.6]} 17. b3
{[%clk 0:01:10.1]} 17... Rc8 {[%clk 0:02:02.5]} 18. Bh6 {[%clk 0:01:07.7]} 18...
Bh8 {[%clk 0:01:55.1]} 19. Bxf8 {[%clk 0:00:52.1]} 19... Qxf8 {[%clk 0:01:56]}
20. Nb6 {[%clk 0:00:52.4]} 20... Rc5 {[%clk 0:01:53.5]} 21. Rxa5 {[%clk
0:00:39.1]} 21... Rxa5 {[%clk 0:01:41.9]} 22. Qxa5 {[%clk 0:00:38.7]} 22... Be8
{[%clk 0:01:31.4]} 23. hxg6 {[%clk 0:00:31.6]} 23... fxg6 {[%clk 0:01:32.3]} 24.
c3 {[%clk 0:00:31.8]} 24... h5 {[%clk 0:01:23]} 25. gxh5 {[%clk 0:00:29.2]}
25... Nxh5 {[%clk 0:01:23.9]} 26. O-O {[%clk 0:00:23.3]} 26... Qf4 {[%clk
0:01:20.6]} 27. Ne2 {[%clk 0:00:19.4]} 27... Qe3+ {[%clk 0:01:11.3]} 28. Rf2
{[%clk 0:00:19.8]} 28... Be5 {[%clk 0:01:09.3]} 29. Nd5 {[%clk 0:00:19.4]} 29...
Qg5+ {[%clk 0:01:07.3]} 30. Kf1 {[%clk 0:00:19.8]} 30... Qh4 {[%clk 0:01:01.3]}
31. Rg2 {[%clk 0:00:06]} 31... Bd7 {[%clk 0:00:49.7]} 32. Qd8+ {[%clk
0:00:05.5]} 32... Kf7 {[%clk 0:00:46.5]} 33. Qxd7 {[%clk 0:00:05.9]} 33... Qh1+
{[%clk 0:00:46.7]} 34. Rg1 {[%clk 0:00:06]} 34... Qxf3+ {[%clk 0:00:45.8]} 35.
Ke1 {[%clk 0:00:06.5]} 35... Qxe4 {[%clk 0:00:35.8]} 36. Qxe7+ {[%clk
0:00:06.5]} 36... Kg8 {[%clk 0:00:36.3]} 37. Qe6+ {[%clk 0:00:06.9]} 37... Kh7
{[%clk 0:00:35.5]} 38. Qf7+ {[%clk 0:00:07]} 38... Kh6 {[%clk 0:00:34.8]} 39.
Qf8+ {[%clk 0:00:07]} 39... Bg7 {[%clk 0:00:34.8]} 40. Qf7 {[%clk 0:00:04.2]}
40... Be5 {[%clk 0:00:28.5]} 41. Qf8+ {[%clk 0:00:03.8]} 41... Bg7 {[%clk
0:00:28.1]} 42. Qf7 {[%clk 0:00:03.9]} 42... Be5 {[%clk 0:00:28.1]} 1/2-1/2